bitfinex-derivatives/quotes_ETHF0:USTF0_20251118
["timestamp","ask_amount","ask_price","bid_price","bid_amount"]
[1763488231607,0.51795,3129.7,3129.6,1.26974]
[1763488231903,1.31503,3129.3,3129.2,0.51803]
[1763488232109,0.797,3129.6,3129.5,0.51797]
[1763488232312,0.51798,3129.6,3129.5,0.51797]
[1763488232506,3.2078,3130.0,3129.3,0.518]
[1763488232507,0.51801,3129.4,3129.3,0.518]
[1763488232804,1.31504,3129.1,3129.0,3.21194945]
[1763488233206,1.31504,3129.1,3129.0,3.73000945]
[1763488233709,0.51803,3129.2,3129.1,0.51804]
[1763488234209,0.51799,3129.5,3129.4,1.26979]
[1763488234409,4.33590106,3130.0,3129.0,3.66564945]
[1763488234410,0.51795,3129.7,3129.6,1.26975]
[1763488234603,0.51795,3129.7,3129.6,0.7518]
[1763488234803,0.51796,3129.6,3129.5,0.4537]
[1763488235102,1.25280086,3129.6,3129.5,0.4537]
[1763488235602,1.25280086,3129.6,3129.0,3.66564945]
[1763488235603,0.51798,3129.5,3129.4,1.26978]
[1763488236003,0.51801,3129.3,3129.2,1.26981]
[1763488236403,1.31503,3129.2,3129.1,0.51804]
[1763488237213,1.31504,3129.1,3129.0,3.21194945]
[1763488237804,1.31504,3129.1,3129.0,0.00414945]
[1763488238009,2.05032868,3129.1,3129.0,0.00414945]
[1763488238415,1.31508,3128.9,3128.8,1.0151164]
[1763488238705,0.51827,3127.7,3127.6,0.7518]
[1763488238907,0.51829,3127.6,3127.5,0.4537]
[1763488239302,0.51829,3127.6,3127.0,3.6615]
[1763488239303,0.6684,3127.6,3127.0,3.6615]
[1763488239612,0.52565148,3127.6,3127.5,0.4537]
[1763488239796,0.00736148,3127.6,3127.5,0.97201]
[1763488240001,0.52565148,3127.6,3127.5,0.97201]
[1763488240302,0.52565148,3127.6,3127.5,1.72381]
[1763488240999,1.18677,3127.1,3127.0,0.00383883]
[1763488241199,3.21516148,3127.6,3127.0,0.97592883]
[1763488241406,0.51836,3127.2,3127.0,0.45753883]
[1763488241606,1.18677,3127.1,3127.0,0.00383883]
[1763488242706,3.72616,3127.2,3127.1,0.7518]
[1763488242908,3.72616,3127.2,3127.0,0.52222883]
[1763488243109,0.51837,3127.1,3127.0,0.00383883]
[1763488243406,1.18677,3127.1,3127.0,0.00383883]
[1763488243902,3.72616,3127.2,3127.1,0.51837]
[1763488244214,0.51837,3127.1,3127.0,0.45753883]
[1763488244414,1.18677,3127.1,3127.0,0.00383883]
[1763488244714,3.2078,3127.2,3127.1,1.27017]
[1763488244905,1.18677,3127.1,3127.0,0.45753883]
[1763488245302,1.18677,3127.1,3127.0,0.00383883]
[1763488246609,0.51854,3126.1,3126.0,1.2055]
[1763488246814,0.51849,3126.4,3125.7,2.18004]
[1763488247010,0.51851,3126.3,3126.2,1.27031]
[1763488247218,1.31552,3126.3,3126.0,0.4537]
[1763488247418,0.51856,3126.0,3125.9,1.27037]
[1763488247606,0.51851,3126.4,3126.0,0.97225]
[1763488247813,3.2078,3126.5,3126.0,0.4537]
[1763488248015,0.51856,3126.0,3125.9,0.00241439]
[1763488248920,3.2078,3126.5,3126.1,0.7518]
[1763488249119,3.2078,3126.5,3126.4,0.51849]
[1763488249422,3.72627,3126.5,3126.4,1.27029]
[1763488249628,0.51849,3126.4,3126.0,0.4537]
[1763488249821,3.2078,3126.5,3126.4,0.51849]
[1763488250020,3.2078,3126.5,3126.4,1.27029]
[1763488250222,0.4537,3127.5,3126.0,0.4537]
[1763488250223,3.72622,3126.9,3126.5,0.4537]
[1763488250426,0.51837,3127.2,3127.0,0.4537]
[1763488250625,3.2078,3127.3,3127.0,0.4537]
[1763488250626,3.2078,3127.3,3127.2,0.51836]
[1763488250830,3.2078,3127.3,3127.0,0.97208]
[1763488251027,3.2078,3127.3,3127.2,0.51836]
[1763488251325,0.51837,3127.2,3127.0,0.4537]
[1763488251521,0.51837,3127.2,3127.1,0.51837]
[1763488251727,3.72614,3127.3,3127.1,0.51837]
[1763488251916,0.51836,3127.2,3127.1,0.51837]
[1763488252120,0.797,3127.2,3127.1,0.51837]
[1763488252321,3.2078,3127.3,3127.1,0.51837]
[1763488252622,0.51836,3127.2,3127.1,0.51837]
[1763488252922,4.52314,3127.3,3127.2,0.51836]
[1763488253128,3.2078,3127.3,3127.2,1.27016]
[1763488253529,3.72614,3127.3,3127.2,0.7518]
[1763488253832,3.2078,3127.3,3127.0,0.4537]
[1763488254427,3.72615,3127.3,3127.1,0.51837]
[1763488254631,3.2078,3127.3,3127.2,0.51836]
[1763488254834,0.51836,3127.2,3127.1,0.51837]
[1763488255239,0.00736148,3127.6,3127.5,0.51831]
[1763488255436,0.51833,3127.4,3127.3,0.51833]
[1763488255636,0.51835,3127.3,3127.2,0.7518]
[1763488255829,0.797,3127.4,3127.3,0.51833]
[1763488256031,1.31532,3127.4,3127.3,0.51833]
[1763488256234,0.52566148,3127.6,3127.5,0.97201]
[1763488256535,1.31533,3127.5,3127.4,0.51832]
[1763488257137,0.00736148,3127.6,3127.5,1.68551]
[1763488257435,1.24095148,3127.6,3127.5,0.51831]
[1763488259334,0.52565148,3127.6,3127.5,1.68551]
[1763488259541,0.00736148,3127.6,3127.5,1.68551]
[1763488260139,0.00736148,3127.6,3127.5,4.89331]
[1763488260329,3.2078,3128.6,3128.5,1.68534]
[1763488261342,3.2104994,3128.6,3128.5,1.68835232]
[1763488261641,3.7286294,3128.6,3128.5,1.68835232]
[1763488263039,0.5208294,3128.6,3128.5,1.68835232]
[1763488263244,0.0026994,3128.6,3128.5,4.89615232]
[1763488263438,3.2078,3130.0,3129.0,0.4382]
[1763488263638,0.51796,3129.6,3129.5,1.1672]
[1763488263841,3.2078,3129.6,3129.1,0.51804]
[1763488264138,0.7153,3129.1,3128.5,0.44121232]
[1763488264348,3.2078,3129.2,3129.1,0.729]
[1763488264536,3.2078,3129.2,3129.1,1.24704]
[1763488264841,0.00260493,3129.2,3129.1,4.45484]
[1763488265041,0.00479379,3129.5,3129.4,1.24699]
[1763488265243,3.2078,3129.8,3129.7,0.729]
[1763488265430,0.5179,3130.0,3129.8,0.51791]
[1763488265630,3.2078,3130.2,3130.1,0.729]
[1763488265829,3.2078,3130.2,3130.0,0.4382]
[1763488266040,0.51788,3130.1,3130.0,0.4382]
[1763488266441,3.21192829,3130.2,3130.0,0.4382]
[1763488266639,0.51788,3130.1,3130.0,0.4382]
[1763488266843,0.51789,3130.1,3129.9,0.51791]
[1763488267045,0.51789,3130.0,3129.9,0.51791]
[1763488267544,0.51788,3130.1,3130.0,1.68509]
[1763488267941,0.00412829,3130.2,3130.1,1.24688]
[1763488268643,0.4537,3131.5,3130.3,0.729]
[1763488268836,0.7153,3131.1,3130.8,0.51776]
[1763488269041,0.51777,3130.8,3130.5,0.4382]
[1763488269242,0.51774,3131.0,3130.9,0.51775]
[1763488269446,0.51774,3131.0,3130.9,1.24675]
[1763488269737,1.23672901,3131.0,3130.9,0.00289128]
[1763488269937,4.44452901,3131.0,3130.9,0.00289128]
[1763488270538,10.89392901,3131.0,3130.9,0.00289128]
[1763488270847,10.89392901,3131.0,3130.0,1.1672]
[1763488270848,9.66088901,3131.0,3130.0,1.1672]
[1763488271036,3.2078,3130.6,3130.1,0.51788]
[1763488271237,0.51783,3130.4,3130.1,3.2078]
[1763488271438,0.51779,3130.6,3130.5,1.1672]
[1763488271738,0.51785,3130.3,3130.2,1.24686]
[1763488271944,0.51785,3130.3,3130.2,0.73220469]
[1763488272145,0.51785,3130.3,3130.2,0.00320469]
[1763488272341,0.51779,3130.7,3130.6,1.24679]
[1763488272541,0.51779,3130.7,3130.6,0.729]
[1763488272937,0.52142901,3131.0,3130.5,3.646]
[1763488273137,0.00368901,3131.0,3130.9,4.45455]
[1763488274345,0.52141901,3131.0,3130.9,3.9368]
[1763488274647,0.00368901,3131.0,3130.9,4.45455]
[1763488274848,0.52141901,3131.0,3130.9,4.45455]
[1763488275050,0.52141901,3131.0,3130.9,3.2078]
[1763488275245,0.51779,3130.6,3130.5,3.646]
[1763488275551,0.51779,3130.7,3130.6,1.24678]
[1763488275746,0.51779,3130.7,3130.6,0.729]
[1763488275947,0.51779,3130.7,3130.6,1.24679]
[1763488276839,0.51776,3130.8,3130.7,1.24676]
[1763488277740,0.51776,3130.8,3130.7,0.729]
[1763488278144,3.2078,3130.8,3130.2,0.00320469]
[1763488278344,0.51784,3130.3,3130.2,0.00320469]
[1763488278743,1.23314,3130.3,3130.2,0.00320469]
[1763488280755,1.19773,3129.8,3129.7,0.00479379]
[1763488280947,0.51793,3129.8,3129.7,0.65579379]
[1763488281146,0.51793,3129.8,3129.7,1.17373379]
[1763488281646,0.51793,3129.8,3129.7,0.65579379]
[1763488281846,1.19773,3129.8,3129.7,0.00885334]
[1763488282250,0.51793,3129.8,3129.7,0.65985334]
[1763488282945,1.19773,3129.8,3129.7,0.00885334]
[1763488285254,1.19783,3129.2,3129.1,3.2078]
[1763488286053,0.51809,3128.8,3128.7,4.3769]
[1763488286244,0.52199569,3128.8,3128.7,3.21156978]
[1763488286555,0.52199569,3128.8,3128.7,3.72967978]
[1763488286855,0.52199569,3128.8,3128.7,3.21156978]
[1763488287057,0.52277379,3129.5,3129.4,0.651]
[1763488287352,0.00479379,3129.5,3129.0,0.4285]
[1763488287556,3.2078,3129.3,3129.0,0.4285]
[1763488287754,0.52277379,3129.5,3129.4,0.6305]
[1763488288152,0.51804,3129.1,3129.0,0.4285]
[1763488288658,1.18214,3129.1,3129.0,0.4285]
[1763488289156,3.2078,3129.2,3128.7,3.21156978]
[1763488289157,1.18219,3128.8,3128.7,0.00376978]
[1763488289360,4.38999,3128.8,3128.7,0.00376978]
[1763488289548,5.12014268,3128.8,3128.7,0.00376978]
[1763488290258,4.38999,3128.8,3128.7,0.00376978]
[1763488291451,3.72589,3128.8,3128.7,0.63426978]
[1763488291645,0.51809,3128.8,3128.7,1.15237978]
[1763488291851,0.51808,3128.9,3128.8,1.14859]
[1763488292860,0.51808,3128.9,3128.8,0.6305]
[1763488293054,1.18219,3128.8,3128.7,0.00376978]
[1763488293251,4.38999,3128.8,3128.7,0.00376978]
[1763488293450,3.72589,3128.8,3128.7,0.63426978]
[1763488293750,0.00859898,3129.5,3129.0,0.3831]
[1763488293956,0.00859898,3129.5,3129.4,0.6305]
[1763488294156,1.18219,3128.8,3128.7,0.00376978]
[1763488294458,0.2289,3128.5,3127.5,1.059]
[1763488294757,3.2078,3128.7,3128.0,1.0136]
[1763488294958,0.51819,3128.3,3128.2,0.6305]
[1763488295350,4.39009,3128.3,3128.2,0.00298635]
[1763488296255,3.2078,3128.3,3128.2,1.15167635]
[1763488296461,0.51813,3128.6,3128.5,1.0136]
[1763488297063,0.51814,3128.5,3128.4,1.14866]
[1763488297456,0.51818,3128.3,3128.2,0.52117635]
[1763488297662,3.72598,3128.3,3128.2,0.63348635]
[1763488298261,3.72598,3128.3,3128.2,0.00298635]
[1763488298455,3.72598,3128.3,3128.2,0.63348635]
[1763488298657,3.2078,3128.3,3128.2,1.15167635]
[1763488299157,3.2078,3128.7,3128.6,1.14863]
[1763488299964,0.51809,3128.8,3128.6,1.14863]
[1763488300154,0.51808,3128.9,3128.8,0.6305]
[1763488300460,0.39169898,3129.5,3129.0,0.3831]
[1763488300461,3.21639898,3129.5,3129.0,0.3831]
[1763488300660,3.21639898,3129.5,3129.1,0.6305]
[1763488300661,0.51804,3129.2,3129.1,0.6305]
[1763488301160,0.51802,3129.3,3129.0,0.90116]
[1763488301358,3.21639898,3129.5,3129.0,0.90116]
[1763488301563,0.51803,3129.2,3129.1,0.51804]
[1763488301764,0.51803,3129.2,3129.0,1.0136]
[1763488302063,0.51803,3129.2,3129.1,0.51804]
[1763488302854,0.51803,3129.2,3129.1,1.14854]
[1763488303559,0.51804,3129.1,3129.0,0.51806]
[1763488304156,0.51803,3129.2,3129.1,1.14854]
[1763488304456,3.21639898,3129.5,3129.2,0.6305]
[1763488304760,0.51804,3129.1,3129.0,0.90114]
[1763488304965,0.51803,3129.2,3129.1,1.14854]
[1763488305464,0.51804,3129.1,3129.0,0.51806]
[1763488305657,0.51803,3129.2,3129.1,0.51803]
[1763488305969,0.58709,3129.9,3129.8,1.14843]
[1763488306258,4.3128,3129.9,3129.8,0.6305]
[1763488306466,0.51806,3129.1,3129.0,0.51806]
[1763488306656,0.51803,3129.3,3129.2,1.14853]
[1763488306859,0.52027334,3129.3,3129.2,1.14853]
[1763488307765,0.52027334,3129.3,3129.0,0.3831]
[1763488307766,0.51804,3129.1,3129.0,1.0136]
[1763488307965,0.51803,3129.2,3129.1,0.6305]
[1763488308162,0.51803,3129.2,3129.0,0.3831]
[1763488308367,0.51804,3129.1,3129.0,0.51806]
[1763488308763,0.52027334,3129.3,3128.9,0.00479379]
[1763488308971,0.51803,3129.2,3129.1,0.51804]
[1763488309370,0.00224334,3129.3,3129.0,0.3831]
[1763488309569,0.52025334,3129.3,3129.2,1.14853]
[1763488309968,0.52025334,3129.3,3129.2,0.6305]
[1763488310666,0.51803,3129.2,3129.0,0.3831]
[1763488310873,0.51804,3129.1,3129.0,0.3831]
[1763488311472,0.00224334,3129.3,3129.2,0.6305]
[1763488311667,0.51804,3129.1,3129.0,0.90116]
[1763488311868,0.00224334,3129.3,3129.0,0.3831]
[1763488312076,0.00224334,3129.3,3129.2,0.6305]
[1763488312266,0.00224334,3129.3,3129.2,1.14853]
[1763488313771,0.00479379,3129.6,3129.2,4.35633]
[1763488314076,3.79489,3129.9,3129.8,1.14843]
[1763488314670,4.3128,3129.9,3129.8,0.6305]
[1763488314976,4.31694329,3129.9,3129.8,0.6305]
[1763488315974,3.79903329,3129.9,3129.7,0.51794]
[1763488316172,0.51795,3129.8,3129.7,0.51794]
[1763488316375,0.51795,3129.8,3129.7,1.14844]
[1763488316570,0.51796,3129.6,3129.5,0.3831]
[1763488316777,3.79903329,3129.9,3129.3,1.1485]
[1763488316778,0.51801,3129.4,3129.3,1.1485]
[1763488316970,0.51801,3129.4,3129.3,0.6305]
[1763488317373,3.2078,3129.5,3129.4,1.14849]
[1763488317566,0.51796,3129.6,3129.4,1.14849]
[1763488317768,0.51796,3129.6,3129.5,1.0033]
[1763488318976,0.51801,3129.3,3129.2,3.72582]
[1763488319180,1.13211,3129.3,3129.2,3.2078]
[1763488319474,0.51801,3129.3,3129.2,3.8367]
[1763488319674,0.51801,3129.3,3129.2,3.2078]
[1763488319675,1.13211,3129.3,3129.2,3.2078]
[1763488320071,0.51801,3129.3,3129.2,4.35473]
[1763488320274,0.51801,3129.3,3129.2,3.8367]
[1763488320574,0.51801,3129.3,3129.2,4.35473]
[1763488320877,0.51801,3129.3,3129.2,3.2078]
[1763488321383,0.51801,3129.3,3129.2,3.8367]
[1763488321680,3.72581,3129.3,3129.2,0.6289]
[1763488321880,0.6141,3129.1,3128.9,0.00479379]
[1763488322076,3.2078,3129.3,3128.9,0.00479379]
[1763488322077,1.13216,3129.0,3128.9,0.00479379]
[1763488322474,3.72581,3129.3,3129.2,0.6289]
[1763488322778,0.59123329,3129.9,3129.8,1.14683]
[1763488322986,1.69417425,3130.9,3129.8,1.14683]
[1763488322987,3.2078,3131.0,3130.7,0.6289]
[1763488323281,3.2078,3131.0,3130.5,0.3744]
[1763488323282,3.8219,3131.0,3130.5,0.3744]
[1763488323482,0.51775,3130.9,3130.5,0.3744]
[1763488323682,3.2078,3131.0,3130.9,0.6289]
[1763488323874,3.21019156,3131.0,3130.9,1.14922551]
[1763488324282,4.34202156,3131.0,3130.9,0.00257551]
[1763488324590,0.51788,3130.1,3130.0,0.89229]
[1763488324885,3.2078,3130.2,3130.1,1.14678]
[1763488325074,3.2078,3130.6,3130.4,0.6289]
[1763488325384,3.72559,3130.6,3130.5,0.6289]
[1763488325683,3.7256,3130.6,3130.5,0.63236115]
[1763488325878,0.51775,3130.9,3130.5,0.63236115]
[1763488326087,0.52012156,3131.0,3130.8,0.3744]
[1763488326283,0.52012156,3131.0,3130.9,0.6289]
[1763488326786,0.00239156,3131.0,3130.9,1.14665]
[1763488327886,0.00239156,3131.0,3130.9,1.40527083]
[1763488328478,0.00479379,3131.3,3131.2,1.1466]
[1763488328886,0.52247379,3131.3,3131.2,1.1466]
[1763488329080,0.51775,3130.9,3130.8,1.0033]
[1763488329478,0.00305944,3130.9,3130.8,1.0033]
[1763488329684,1.13194,3130.3,3130.2,0.00479379]
[1763488329985,0.51802,3129.3,3129.2,0.6289]
[1763488330686,0.51802,3129.3,3129.2,0.63159905]
[1763488330883,0.51802,3129.3,3129.2,0.00269905]
[1763488331078,1.13212,3129.3,3129.2,0.00269905]
[1763488331677,1.13214,3129.1,3129.0,3.82875182]
[1763488331882,0.6141,3129.0,3128.9,0.00479379]
[1763488332188,3.72584,3129.1,3129.0,1.0033]
[1763488332381,3.2078,3129.1,3129.0,1.52136]
[1763488332688,3.2078,3129.5,3129.1,0.6289]
[1763488332892,3.2078,3129.5,3129.3,0.6289]
[1763488332893,0.51799,3129.4,3129.3,0.6289]
[1763488333284,3.2078,3129.5,3129.4,0.6289]
[1763488333486,3.2078,3129.5,3129.0,0.37746631]
[1763488333786,3.2078,3129.1,3129.0,0.00306631]
[1763488333986,3.8219,3129.1,3129.0,0.00306631]
[1763488334185,3.2078,3129.1,3129.0,0.00306631]
[1763488334886,3.2078,3129.1,3129.0,1.00636631]
[1763488335280,3.2078,3129.1,3129.0,1.52442631]
[1763488335788,0.51802,3129.3,3129.2,0.6289]
[1763488335992,0.51801,3129.3,3129.2,1.14693]
[1763488336191,0.51803,3129.2,3129.0,0.37746631]
[1763488336383,3.2078,3129.5,3129.0,0.37746631]
[1763488336584,3.2078,3129.5,3129.4,1.14689]
[1763488337585,3.72578,3129.5,3129.4,0.6289]
[1763488338191,1.13214,3129.1,3129.0,0.00306631]
[1763488338491,4.33994,3129.1,3129.0,0.00306631]
[1763488338691,3.72584,3129.1,3129.0,0.00306631]
[1763488338996,3.2078,3129.5,3129.0,3.58526631]
[1763488339298,3.2078,3129.5,3129.3,0.51801]
[1763488339492,3.72578,3129.5,3129.3,0.51801]
[1763488339690,0.51799,3129.4,3129.2,0.51803]
[1763488339893,0.51801,3129.3,3129.2,0.51803]
[1763488340086,3.2078,3129.5,3129.4,0.51799]
[1763488340294,3.2078,3129.5,3129.4,1.14689]
[1763488340782,3.72578,3129.5,3129.4,1.14689]
[1763488340982,3.2078,3129.5,3129.4,0.6289]
[1763488341195,3.2078,3129.5,3129.4,1.09769]
[1763488341400,3.72578,3129.5,3129.4,1.09769]
[1763488341605,0.00479379,3129.6,3129.5,1.09768]
[1763488341804,3.2078,3130.4,3130.2,0.3655]
[1763488342005,3.2078,3130.4,3130.2,0.88336]
[1763488342202,3.2078,3130.4,3130.3,1.09754]
[1763488342406,3.2078,3131.3,3130.8,1.46296]
[1763488342607,0.51771,3131.1,3130.8,1.46296]
[1763488342803,3.2078,3131.3,3130.8,1.46296]
[1763488343109,0.00479379,3131.2,3130.8,1.46296]
[1763488344805,0.51776,3130.8,3130.7,3.2078]
[1763488345111,0.00479379,3131.2,3130.8,1.46296]
[1763488345112,0.51774,3131.0,3130.8,1.46296]
[1763488345313,0.52080944,3130.9,3130.6,0.51778]
[1763488345507,0.00305944,3130.9,3130.5,0.00479379]
[1763488345809,0.00305944,3130.9,3130.8,1.46296]
[1763488346012,0.52080944,3130.9,3130.8,1.46296]
[1763488346211,0.00305944,3130.9,3130.8,1.46296]
[1763488346400,0.52080944,3130.9,3130.8,0.9452]
[1763488346711,0.51779,3130.7,3130.6,0.51779]
[1763488346910,0.51779,3130.6,3130.5,0.52260379]
[1763488347112,0.51778,3130.8,3130.6,0.51779]
[1763488347310,0.51778,3130.7,3130.6,0.51779]
[1763488348009,3.21085944,3130.9,3130.7,0.51777]
[1763488348010,0.51776,3130.8,3130.7,0.51777]
[1763488348206,3.21085944,3130.9,3130.8,1.40756]
[1763488348603,3.72860944,3130.9,3130.8,1.40756]
[1763488348803,0.00305944,3130.9,3130.8,4.61536]
[1763488349010,0.00479379,3131.2,3131.1,1.07511]
[1763488350112,0.00707722,3131.2,3131.1,1.07511]
[1763488351223,0.52477722,3131.2,3131.1,1.07511]
[1763488351513,0.52477722,3131.2,3131.1,0.51771]
[1763488352108,0.51772,3131.1,3130.8,3.5402]
[1763488352517,0.51772,3131.1,3131.0,0.5574]
[1763488353015,0.00228343,3131.2,3131.1,1.07511]
[1763488353209,3.2078,3131.7,3131.6,1.07503]
[1763488353911,3.2078,3132.1,3131.4,0.3324]
[1763488354111,0.51765,3131.5,3131.4,0.00409846]
[1763488354622,1.09065,3131.5,3131.4,0.00409846]
[1763488355023,7.09065,3131.5,3131.4,0.00409846]
[1763488355314,0.51774,3131.0,3130.9,1.07515]
[1763488355709,0.51774,3131.0,3130.9,0.5574]
[1763488355910,3.2078,3131.3,3130.8,0.85016]
[1763488355911,0.51775,3130.9,3130.8,0.85016]
[1763488356211,3.2078,3131.3,3130.8,0.85341788]
[1763488356411,3.2078,3131.3,3130.8,1.41081788]
[1763488356709,3.2078,3131.3,3130.8,0.33565788]
[1763488356910,3.2078,3131.3,3131.0,0.51773]
[1763488357308,0.51774,3131.0,3130.9,0.51774]
[1763488357504,0.51774,3131.0,3130.9,1.07514]
[1763488357810,0.51772,3131.1,3130.9,1.07514]
[1763488358013,3.2078,3131.3,3130.8,0.00325788]
[1763488358212,0.51774,3131.0,3130.9,0.51774]
[1763488358517,0.51774,3131.0,3130.9,1.07514]
[1763488358708,0.51775,3130.9,3130.8,0.52100788]
[1763488359013,0.51773,3131.0,3130.9,1.07513]
[1763488359420,0.51775,3130.9,3130.8,0.85340788]
[1763488359608,0.51775,3130.9,3130.8,0.89305788]
[1763488360317,0.51773,3131.0,3130.9,0.51773]
[1763488360812,3.72549,3131.3,3131.0,0.5574]
[1763488361014,0.51767,3131.4,3131.3,1.07508]
[1763488361207,0.51767,3131.4,3131.3,0.5574]
[1763488361612,0.51773,3131.1,3131.0,1.07511]
[1763488361816,3.2078,3131.7,3131.2,0.51769]
[1763488362011,0.51771,3131.2,3131.1,0.5177]
[1763488362213,0.51773,3131.0,3130.9,0.51774]
[1763488362412,0.51772,3131.1,3131.0,0.5574]
[1763488362618,0.5177,3131.2,3131.1,0.5574]
[1763488362820,0.51771,3131.1,3131.0,0.51773]
[1763488363116,0.51771,3131.1,3131.0,1.07513]
[1763488363715,0.573,3131.1,3131.0,0.51773]
[1763488363916,0.51771,3131.1,3131.0,1.07513]
[1763488364426,1.09073,3131.0,3130.9,0.51774]
[1763488365120,0.51775,3130.9,3130.8,0.52100788]
[1763488365321,0.51773,3131.0,3130.9,1.07513]
[1763488366020,0.51768,3131.4,3131.3,0.51768]
[1763488366209,0.51768,3131.4,3131.3,0.5574]
[1763488366416,3.2078,3131.7,3131.3,0.51768]
[1763488366716,0.51766,3131.4,3131.3,0.5574]
[1763488367110,0.51765,3131.5,3131.0,0.3324]
[1763488367310,3.2078,3131.7,3131.6,1.07503]
[1763488367722,0.51756,3132.0,3131.9,0.51757]
[1763488367922,0.573,3131.8,3131.7,0.51761]
[1763488368119,0.5176,3131.9,3131.8,1.07499]
[1763488368421,0.5176,3131.9,3131.8,0.5574]
[1763488368809,0.5176,3131.9,3131.8,1.075]
[1763488369815,0.5176,3131.9,3131.8,0.5574]
[1763488370818,0.5176,3131.9,3131.8,1.075]
[1763488371016,0.51761,3131.8,3131.5,0.3324]
[1763488371615,0.51762,3131.7,3131.6,1.07503]
[1763488372318,0.573,3131.5,3131.4,0.51766]
[1763488372520,0.573,3131.1,3131.0,0.85011]
[1763488372725,0.573,3131.1,3131.0,1.11119374]
[1763488372912,3.2078,3131.8,3131.1,0.51771]
[1763488373113,3.2078,3131.8,3131.0,0.59348374]
[1763488373324,0.51764,3131.6,3131.5,1.07503]
[1763488373623,1.09064,3131.6,3131.5,0.51763]
[1763488373825,0.51765,3131.5,3131.4,0.51766]
[1763488374018,1.09065,3131.5,3131.4,0.51766]
[1763488374222,0.51767,3131.4,3131.3,0.51768]
[1763488374816,0.51771,3131.1,3131.0,0.8898]
[1763488375921,0.51771,3131.1,3131.0,1.66717436]
[1763488376131,0.51771,3131.1,3131.0,1.40753]
[1763488376519,0.51771,3131.1,3131.0,0.8898]
[1763488376720,1.09073,3131.0,3130.9,0.51774]
[1763488377022,0.51773,3131.0,3130.9,1.07514]
[1763488377528,0.51775,3130.9,3130.8,4.23901788]
[1763488378628,3.2078,3131.4,3130.9,0.51774]
[1763488378927,0.51775,3130.9,3130.8,4.23901788]
[1763488379229,0.51773,3131.0,3130.9,1.02793]
[1763488380523,0.51769,3131.3,3131.0,0.3156]
[1763488380731,0.51768,3131.4,3131.3,0.5102]
[1763488381125,0.5315,3131.1,3130.8,3.21105788]
[1763488381328,0.51773,3131.0,3130.9,1.02793]
[1763488381633,0.51773,3131.0,3130.9,0.5102]
[1763488381830,3.2078,3131.4,3130.8,3.21105788]
[1763488381831,0.51775,3130.9,3130.8,3.21105788]
[1763488382344,1.04925,3130.9,3130.8,0.00325788]
[1763488382729,4.25705,3130.9,3130.8,0.00325788]
[1763488383024,1.04929,3130.6,3130.5,0.00479379]
[1763488383434,1.79397443,3130.6,3130.5,0.00479379]
[1763488383819,0.51791,3130.0,3129.5,3.5402]
[1763488384020,1.39214902,3131.0,3130.0,0.8258]
[1763488384021,0.51788,3130.1,3130.0,0.8258]
[1763488384534,3.72568,3130.1,3130.0,0.8258]
[1763488384732,0.51793,3129.8,3129.7,1.61873815]
[1763488384932,0.00300022,3129.8,3129.7,1.61873815]
[1763488385532,0.00300022,3129.8,3129.7,1.87435481]
[1763488386133,4.33574902,3131.3,3130.6,0.51778]
[1763488386328,0.51776,3130.8,3130.7,3.72558]
[1763488386527,0.51776,3130.8,3130.7,3.718]
[1763488386731,0.51779,3130.6,3130.5,0.83341]
[1763488386936,0.51779,3130.6,3130.5,1.34361]
[1763488387133,0.52050387,3130.6,3130.5,1.34361]
[1763488387628,0.5315,3130.4,3130.1,3.2078]
[1763488387828,0.51786,3130.3,3130.1,3.72568]
[1763488388125,0.51786,3130.2,3130.1,4.23588]
[1763488388331,1.04936,3130.2,3130.1,3.2078]
[1763488388530,0.51792,3129.9,3129.7,0.59060815]
[1763488388738,0.51792,3129.9,3129.7,1.10853815]
[1763488389033,0.51789,3130.1,3130.0,0.8258]
[1763488389229,3.2078,3130.2,3129.7,1.61873815]
[1763488389539,0.00271387,3130.6,3130.5,1.34361]
[1763488390631,0.00271387,3130.6,3130.5,4.55141]
[1763488390827,3.2078,3131.6,3131.1,0.5102]
[1763488391031,3.72543,3131.6,3131.5,0.8258]
[1763488391231,3.2078,3132.1,3131.5,0.8258]
[1763488391430,0.51761,3131.8,3131.7,0.5102]
[1763488391731,3.472,3132.5,3131.6,3.2078]
[1763488391932,0.51753,3132.3,3132.1,0.51755]
[1763488392130,1.04903,3132.2,3132.1,0.00411834]
[1763488392529,7.79383965,3132.2,3132.1,1.834e-05]
[1763488392931,1.79383965,3132.2,3132.1,1.834e-05]
[1763488393126,1.04903,3132.2,3132.1,1.834e-05]
[1763488393627,1.79387669,3132.2,3132.1,1.834e-05]
[1763488393826,7.79387669,3132.2,3132.1,1.834e-05]
[1763488394231,1.79387669,3132.2,3132.1,1.834e-05]
[1763488394640,7.79387669,3132.2,3132.1,1.834e-05]
[1763488394841,1.04903,3132.2,3132.1,1.834e-05]
[1763488395635,0.5315,3132.2,3132.1,1.834e-05]
[1763488395838,1.04903,3132.2,3132.1,0.51756834]
[1763488396134,0.51753,3132.2,3132.1,1.834e-05]
[1763488397535,3.2078,3133.3,3132.8,0.5102]
[1763488397835,0.51745,3132.7,3132.5,0.3156]
[1763488398034,3.2078,3133.3,3132.6,0.51746]
[1763488398337,3.2078,3133.3,3132.5,0.3156]
[1763488398338,0.51742,3132.9,3132.7,0.51745]
[1763488398538,0.51743,3132.8,3132.7,0.5102]
[1763488398834,0.51749,3132.5,3132.3,0.51751]
[1763488399134,0.00328796,3132.9,3132.8,1.02763]
[1763488399439,0.5173,3133.6,3133.0,0.3156]
[1763488399640,3.2078,3133.3,3132.5,0.3156]
[1763488399930,0.51739,3133.1,3133.0,0.5102]
[1763488400334,0.0026844,3133.1,3133.0,1.3303]
[1763488400732,0.5200644,3133.1,3133.0,0.8129]